bitfinex/quotes_SOLUSD_20250422
["timestamp","ask_amount","ask_price","bid_price","bid_amount"]
[1745292262444,7.16794495,139.51,139.47,31.77919966]
[1745292263184,7.16794495,139.51,139.48,13.1295508]
[1745292264379,7.16743119,139.52,139.48,13.1295508]
[1745292264876,20.29698199,139.52,139.48,13.1295508]
[1745292265265,7.16743119,139.52,139.48,13.1295508]
[1745292265459,7.16743119,139.52,139.49,13.1295508]
[1745292265678,20.29698199,139.52,139.48,13.1295508]
[1745292265877,7.16743119,139.52,139.48,13.1295508]
[1745292266662,7.16743119,139.52,139.47,13.27171237]
[1745292266877,20.29698199,139.52,139.47,13.27171237]
[1745292267178,20.29698199,139.52,139.48,13.1295508]
[1745292267380,20.29698199,139.52,139.47,13.27171237]
[1745292267676,25.08436406,139.53,139.47,13.27171237]
[1745292267866,13.1295508,139.52,139.48,13.1295508]
[1745292268478,13.1295508,139.52,139.47,13.27171237]
[1745292268679,13.1295508,139.51,139.47,13.27171237]
[1745292268867,13.1295508,139.5,139.46,18.64964886]
[1745292269066,13.1295508,139.49,139.45,15.06]
[1745292269260,13.1295508,139.49,139.46,18.64964886]
[1745292269460,96.1295508,139.51,139.46,31.77919966]
[1745292269871,7.16897268,139.49,139.46,18.64964886]
[1745292270080,7.16865041,139.5,139.47,13.27171237]
[1745292270262,7.16865041,139.5,139.48,13.1295508]
[1745292271465,7.16865041,139.5,139.47,13.1295508]
[1745292271670,7.16865041,139.5,139.48,18.64964886]
[1745292272365,90.16811251,139.51,139.49,13.1295508]
[1745292272574,7.16811251,139.51,139.49,13.1295508]
[1745292272887,7.16811251,139.51,139.47,13.27171237]
[1745292273081,7.16811251,139.51,139.48,13.1295508]
[1745292273577,7.16743119,139.52,139.48,13.1295508]
[1745292274160,13.1295508,139.5,139.46,18.64964886]
[1745292274384,13.1295508,139.49,139.45,15.06]
[1745292275496,89.5574,139.51,139.44,18.64964886]
[1745292275668,13.1295508,139.46,139.42,0.063]
[1745292276291,83.0,139.49,139.42,0.063]
[1745292276292,13.1295508,139.45,139.42,0.063]
[1745292276488,13.1295508,139.46,139.42,0.063]
[1745292277490,7.17102904,139.45,139.42,0.063]
[1745292278404,7.17102904,139.45,139.42,13.1925508]
[1745292278782,7.17066525,139.46,139.44,18.64964886]
[1745292279089,7.16948666,139.48,139.45,13.1295508]
[1745292279286,7.16948666,139.48,139.44,13.1295508]
[1745292280390,20.29903746,139.48,139.44,18.64964886]
[1745292280587,13.1295508,139.47,139.44,18.64964886]
[1745292280777,20.29903746,139.48,139.44,18.64964886]
[1745292280968,38.22275412,139.48,139.43,13.27171237]
[1745292281173,25.09320332,139.48,139.44,31.77919966]
[1745292281686,7.16948666,139.48,139.44,31.77919966]
[1745292281878,7.16948666,139.48,139.46,18.64964886]
[1745292282281,26.0,139.52,139.48,18.64964886]
[1745292282282,7.16743119,139.52,139.48,18.64964886]
[1745292282497,7.16743119,139.52,139.5,13.1295508]
[1745292282687,7.16743119,139.52,139.49,13.1295508]
[1745292283193,7.16743119,139.52,139.5,31.77919966]
[1745292283367,7.9819,139.56,139.5,31.77919966]
[1745292283571,7.16589036,139.55,139.51,13.1295508]
[1745292284298,20.29544116,139.55,139.5,13.1295508]
[1745292284474,38.21016706,139.55,139.5,13.1295508]
[1745292284670,13.1295508,139.54,139.5,13.1295508]
[1745292284870,13.1295508,139.53,139.49,18.64964886]
[1745292285070,13.1295508,139.54,139.49,31.77919966]
[1745292285271,121.21016706,139.55,139.5,13.1295508]
[1745292286081,108.08061626,139.55,139.5,13.1295508]
[1745292286391,121.21016706,139.55,139.5,13.1295508]
[1745292287395,13.1295508,139.54,139.49,13.1295508]
[1745292287786,108.08061626,139.55,139.49,13.1295508]
[1745292287988,108.08061626,139.55,139.48,0.14216157]
[1745292287989,7.1669175,139.53,139.5,13.1295508]
[1745292288499,7.1669175,139.53,139.49,13.1295508]
[1745292289300,20.2964683,139.53,139.49,13.1295508]
[1745292289498,38.21376207,139.53,139.49,18.64964886]
[1745292289700,13.1295508,139.52,139.47,13.1295508]
[1745292289905,7.16794495,139.51,139.48,18.64964886]
[1745292290776,7.16794495,139.51,139.48,31.77919966]
[1745292290996,7.16794495,139.51,139.49,13.1295508]
[1745292291293,7.16794495,139.51,139.48,13.27171237]
[1745292291500,7.1669175,139.53,139.51,18.64964886]
[1745292291696,7.1669175,139.53,139.51,13.1295508]
[1745292292803,0.03,139.56,139.52,13.1295508]
[1745292292999,7.16589036,139.55,139.53,13.1295508]
[1745292293202,7.19556763,139.56,139.53,13.1295508]
[1745292293379,7.19556763,139.56,139.53,13.27171237]
[1745292293579,7.19556763,139.56,139.54,13.1295508]
[1745292293975,0.03,139.56,139.55,13.27171237]
[1745292294584,0.03,139.56,139.55,0.14216157]
[1745292299697,0.03,139.56,139.54,13.1295508]
[1745292299887,6.72452212,139.58,139.55,0.14216157]
[1745292301790,6.72452212,139.58,139.57,18.64964886]
[1745292302491,7.1639781,139.59,139.57,18.64964886]
[1745292303421,13.1295508,139.58,139.54,18.64964886]
[1745292303621,7.16537689,139.56,139.54,18.64964886]
[1745292305516,13.1295508,139.55,139.48,0.063]
[1745292305723,7.16845878,139.5,139.48,0.063]
[1745292306025,13.1295508,139.49,139.48,0.063]
[1745292307322,20.29852348,139.49,139.48,0.063]
[1745292309124,7.16897268,139.49,139.48,0.063]
[1745292310323,7.16897268,139.49,139.48,18.71264886]
[1745292310622,7.16897268,139.49,139.48,18.85481043]
[1745292310820,7.16897268,139.49,139.48,0.20516157]
[1745292311017,7.16826146,139.51,139.49,0.14216157]
[1745292311219,7.16826146,139.51,139.5,18.79181043]
[1745292311425,7.1669175,139.53,139.5,18.64964886]
[1745292311734,7.1669175,139.53,139.5,0.14216157]
[1745292311906,7.1669175,139.53,139.5,18.79181043]
[1745292312710,7.1669175,139.53,139.5,13.27171237]
[1745292313405,17.91588473,139.55,139.5,13.27171237]
[1745292313610,17.91588473,139.55,139.52,18.64964886]
[1745292314639,25.08177509,139.55,139.52,18.64964886]
[1745292318745,7.16589036,139.55,139.54,18.64964886]
[1745292319236,7.16589036,139.55,139.52,0.14216157]
[1745292319237,20.29544116,139.55,139.52,0.14216157]
[1745292319736,7.16743119,139.52,139.48,0.063]
[1745292319942,13.1295508,139.49,139.48,0.063]
[1745292320937,20.29852348,139.49,139.48,0.063]
[1745292321330,7.16897268,139.49,139.48,0.063]
[1745292322850,20.29852348,139.49,139.48,0.063]
[1745292323842,7.16897268,139.49,139.48,0.063]
[1745292328938,20.29852348,139.49,139.48,0.063]
[1745292329443,7.16897268,139.49,139.48,0.063]
[1745292330344,20.29852348,139.49,139.48,0.063]
[1745292333226,7.16897268,139.49,139.48,13.1925508]
[1745292333431,7.16897268,139.49,139.48,13.33471237]
[1745292333937,7.16897268,139.49,139.48,0.063]
[1745292334114,7.16897268,139.49,139.48,0.20516157]
[1745292334946,25.08780732,139.51,139.48,0.20516157]
[1745292337147,38.21735812,139.51,139.48,0.20516157]
[1745292338852,7.1669175,139.53,139.5,13.1295508]
[1745292339047,7.1669175,139.53,139.51,13.1295508]
[1745292339251,7.1669175,139.53,139.52,18.64964886]
[1745292339554,17.91360456,139.56,139.52,31.92136123]
[1745292339762,17.91360456,139.56,139.52,31.77919966]
[1745292339958,7.16537689,139.56,139.54,18.64964886]
[1745292340760,7.1648635,139.57,139.54,18.64964886]
[1745292341336,38.20657307,139.57,139.53,0.14216157]
[1745292341767,38.20657307,139.57,139.52,31.77919966]
[1745292341937,38.20657307,139.57,139.53,13.27171237]
[1745292343345,13.1295508,139.58,139.53,13.27171237]
[1745292343542,25.07342932,139.59,139.55,0.14216157]
[1745292343543,38.20298012,139.59,139.55,0.14216157]
[1745292343744,13.1295508,139.58,139.55,0.14216157]
[1745292345157,13.1295508,139.57,139.55,0.14216157]
[1745292345357,13.1295508,139.56,139.53,0.14216157]
[1745292345577,7.16589036,139.55,139.53,13.1295508]
[1745292345862,20.29338775,139.59,139.55,0.14216157]
[1745292346459,25.07349822,139.59,139.55,0.14216157]
[1745292346961,38.20304902,139.59,139.55,0.14216157]
[1745292349866,13.1295508,139.58,139.55,0.14216157]
[1745292350063,13.1295508,139.58,139.54,18.64964886]
[1745292350466,13.1295508,139.58,139.54,13.1295508]
[1745292351469,7.1648635,139.57,139.54,13.1295508]
[1745292352071,20.2944143,139.57,139.55,0.14216157]
[1745292353359,7.1648635,139.57,139.55,0.14216157]
[1745292356366,13.1295508,139.56,139.53,18.64964886]
[1745292356568,13.1295508,139.54,139.53,18.64964886]
[1745292358985,13.1295508,139.55,139.53,18.64964886]
[1745292360572,7.16640389,139.54,139.53,18.64964886]
[1745292360964,38.21196443,139.54,139.48,33.73264886]
[1745292361171,25.08241363,139.54,139.48,33.73264886]
[1745292361485,13.1295508,139.52,139.48,33.73264886]
[1745292362076,13.1295508,139.51,139.48,33.73264886]
[1745292362249,13.1295508,139.52,139.48,33.73264886]
[1745292362676,20.29749575,139.51,139.48,33.73264886]
[1745292362977,20.29749575,139.51,139.49,0.14216157]
[1745292363153,20.29749575,139.51,139.48,33.73264886]
[1745292363154,13.1295508,139.5,139.48,33.73264886]
[1745292363478,13.1295508,139.49,139.48,33.73264886]
[1745292363868,13.1295508,139.49,139.48,33.87481043]
[1745292364252,13.1295508,139.5,139.48,33.87481043]
[1745292364454,38.21735812,139.51,139.48,33.87481043]
[1745292365575,13.1295508,139.5,139.48,33.87481043]
[1745292365771,13.1295508,139.5,139.48,33.73264886]
[1745292366776,7.16897268,139.49,139.48,33.87481043]
[1745292369474,7.16866209,139.5,139.49,0.14216157]
[1745292370062,7.16866209,139.5,139.48,33.73264886]
[1745292370871,20.29821289,139.5,139.48,33.73264886]
[1745292373278,15.58337593,139.5,139.48,33.73264886]
[1745292373683,15.58337593,139.5,139.48,33.93225186]
[1745292374368,8.41471384,139.5,139.48,33.93225186]
[1745292375277,7.16897268,139.49,139.48,34.07441343]
[1745292379579,7.16845878,139.5,139.48,34.07441343]
[1745292380001,7.16845878,139.5,139.49,0.14216157]
[1745292380898,7.16813251,139.51,139.5,18.64964886]
[1745292382390,33.49905649,139.53,139.49,18.79181043]
[1745292382595,33.49905649,139.53,139.49,18.64964886]
[1745292383099,33.49905649,139.53,139.5,0.14216157]
[1745292386880,25.08434265,139.53,139.5,0.14216157]
[1745292387084,33.49905649,139.53,139.5,0.14216157]
[1745292389478,26.33213899,139.53,139.5,0.14216157]
[1745292391704,33.49905649,139.53,139.5,0.14216157]
[1745292395803,35.83057863,139.55,139.5,0.14216157]
[1745292396101,8.41471384,139.53,139.5,0.14216157]
[1745292397100,8.41471384,139.53,139.49,27.0643627]
[1745292397307,8.41471384,139.5,139.48,0.262603]
[1745292397503,8.41471384,139.49,139.47,0.063]
[1745292397808,8.41471384,139.47,139.46,0.063]
[1745292398105,15.58471455,139.47,139.46,0.063]
[1745292399993,7.17000071,139.47,139.46,0.063]
[1745292400691,15.58471455,139.47,139.46,0.063]
[1745292401114,7.17000071,139.47,139.46,18.71264886]
[1745292401305,7.17000071,139.47,139.46,8.47771384]
[1745292401612,26.33459371,139.51,139.47,0.14216157]
[1745292401913,17.91987987,139.51,139.47,0.14216157]
[1745292402115,26.33459371,139.51,139.47,0.14216157]
[1745292402805,7.16845878,139.5,139.47,0.14216157]
[1745292403504,7.16845878,139.5,139.47,27.20652427]
[1745292403810,7.16845878,139.5,139.47,42.22652427]
[1745292405126,8.41471384,139.48,139.47,33.81181043]
[1745292405294,8.41471384,139.48,139.47,33.66964886]
[1745292405892,8.41471384,139.49,139.47,33.66964886]
[1745292406198,8.41471384,139.48,139.47,33.66964886]
[1745292407803,15.5842005,139.48,139.47,15.02]
[1745292408002,15.5842005,139.48,139.46,0.063]
[1745292412822,8.41471384,139.47,139.46,0.063]
[1745292413706,8.41471384,139.47,139.43,0.063]
[1745292413903,8.41471384,139.45,139.43,0.063]
[1745292414916,7.17154331,139.44,139.43,0.063]
[1745292415430,15.58625715,139.44,139.43,0.063]
[1745292422133,7.17154331,139.44,139.43,0.063]
[1745292422439,7.17000071,139.47,139.43,8.47771384]
[1745292422618,7.17000071,139.47,139.44,0.14216157]
[1745292423532,15.58471455,139.47,139.44,0.14216157]
[1745292423839,8.41471384,139.45,139.43,0.063]
[1745292425128,8.41471384,139.46,139.43,0.063]
[1745292426035,7.17102904,139.45,139.43,0.063]
[1745292426228,8.41471384,139.44,139.43,0.063]
[1745292429643,15.58625715,139.44,139.43,0.063]
[1745292432846,15.58625715,139.44,139.42,1e-08]
[1745292432847,49.24511251,139.44,139.42,1e-08]
[1745292433041,8.41471384,139.43,139.42,1e-08]
[1745292437251,15.5867715,139.43,139.42,1e-08]
[1745292444454,33.51691565,139.43,139.4,0.063]
[1745292445050,33.51691565,139.43,139.38,0.063]
[1745292445652,8.41471384,139.39,139.38,0.063]
[1745292446058,15.58882963,139.39,139.38,0.063]
[1745292446257,15.58882963,139.39,139.37,1e-08]
[1745292446465,8.41471384,139.38,139.37,1e-08]
[1745292448171,15.58934434,139.38,139.37,1e-08]
[1745292453466,33.5259206,139.38,139.35,0.063]
[1745292453760,8.41471384,139.36,139.35,0.063]
[1745292453969,8.41471384,139.36,139.35,1e-08]
[1745292454975,42.0735692,139.36,139.34,1e-08]
[1745292455263,8.41471384,139.35,139.33,1e-08]
[1745292455442,15.59140395,139.34,139.33,1e-08]
[1745292456451,7.17669011,139.34,139.33,1e-08]
[1745292456867,7.17669011,139.34,139.33,0.14216158]
[1745292457351,7.17637087,139.35,139.33,0.14216158]
[1745292457959,7.17585082,139.36,139.33,0.14216158]
[1745292459453,7.17585082,139.36,139.33,1e-08]
[1745292459648,7.17585082,139.36,139.33,18.79181044]
[1745292460573,7.17585082,139.36,139.33,8.55687542]
[1745292462679,7.17585082,139.36,139.33,1e-08]
[1745292462863,7.17585082,139.36,139.34,0.14216157]
[1745292465974,61.87001335,139.4,139.35,53.0643627]
[1745292465975,7.17360114,139.4,139.35,53.0643627]
[1745292466177,7.17308657,139.41,139.38,8.41471384]
[1745292466476,7.17308657,139.41,139.39,18.64964886]
[1745292466689,7.17205766,139.43,139.4,8.55687541]
[1745292466877,7.17205766,139.43,139.41,8.41471384]
[1745292467182,7.17205766,139.43,139.41,18.64964886]
[1745292467389,7.17205766,139.43,139.4,0.14216157]
[1745292470185,7.23476569,139.44,139.42,0.14216157]
[1745292471676,0.063,139.44,139.42,0.14216157]
[1745292473085,0.063,139.44,139.43,18.64964886]
[1745292473278,0.063,139.44,139.43,18.79181043]
[1745292473476,0.063,139.44,139.43,27.20652427]
[1745292473879,0.063,139.44,139.43,18.79181043]
[1745292474077,0.063,139.44,139.43,18.64964886]
[1745292474591,0.063,139.44,139.43,27.20652427]
[1745292475468,0.063,139.44,139.43,18.79181043]
[1745292477800,0.063,139.44,139.43,18.64964886]
[1745292478090,8.47771384,139.44,139.42,15.0]
[1745292478682,7.17205766,139.43,139.42,15.0]
[1745292478888,7.17205766,139.43,139.42,33.64964886]
[1745292480589,15.5867715,139.43,139.39,18.64964886]
[1745292480787,8.41471384,139.42,139.39,18.64964886]
[1745292482382,7.17308657,139.41,139.39,18.64964886]
[1745292484286,7.17278238,139.42,139.4,0.14216157]
[1745292484687,8.41471384,139.41,139.39,18.64964886]
[1745292486099,7.17360114,139.4,139.39,18.79181043]
[1745292488394,8.41471384,139.42,139.39,18.79181043]
[1745292489192,0.063,139.44,139.4,0.14216157]
[1745292489374,8.47771384,139.44,139.4,0.14216157]
[1745292489574,8.47771384,139.44,139.4,8.55687541]
[1745292489902,8.41471384,139.43,139.4,0.14216157]
[1745292490275,0.063,139.44,139.39,18.64964886]
[1745292490276,8.41471384,139.41,139.39,18.64964886]
[1745292490592,15.58831498,139.4,139.39,18.64964886]
[1745292490976,15.58831498,139.4,139.38,15.0]
[1745292491893,8.41471384,139.39,139.38,33.64964886]
[1745292492088,15.58882963,139.39,139.38,33.64964886]
[1745292492293,15.58882963,139.39,139.35,18.64964886]
[1745292492502,8.41471384,139.37,139.35,18.64964886]
[1745292492710,8.41471384,139.36,139.35,18.64964886]
[1745292493706,15.590374,139.36,139.35,18.64964886]
[1745292494210,7.1746305,139.38,139.35,27.20652427]
[1745292494400,7.1746305,139.38,139.37,0.14216157]
[1745292497499,7.1746305,139.38,139.35,27.0643627]
[1745292497811,7.17426237,139.39,139.36,8.55687541]
[1745292498105,7.17426237,139.39,139.36,8.05687541]
[1745292498308,7.17426237,139.39,139.35,27.0643627]
[1745292498484,15.58897621,139.39,139.35,27.0643627]
[1745292498687,15.58897621,139.39,139.35,18.64964886]
[1745292498886,8.41471384,139.38,139.35,18.64964886]
[1745292499710,8.41471384,139.36,139.35,18.64964886]
[1745292499888,15.590374,139.36,139.35,18.64964886]
[1745292500091,7.17566016,139.36,139.35,18.64964886]
[1745292502689,7.17566016,139.36,139.33,1e-08]
[1745292502690,15.590374,139.36,139.33,1e-08]
[1745292502907,8.41471384,139.34,139.33,1e-08]
[1745292504291,15.59140395,139.34,139.33,1e-08]
[1745292505287,7.17669011,139.34,139.33,1e-08]
[1745292505497,15.59140395,139.34,139.33,1e-08]
[1745292509620,7.17669011,139.34,139.33,1e-08]
[1745292509997,15.59140395,139.34,139.33,1e-08]
[1745292510815,41.59140395,139.34,139.33,1e-08]
[1745292511018,15.59140395,139.34,139.33,1e-08]
[1745292514225,26.0,139.33,139.3,0.063]
[1745292514431,83.0,139.32,139.3,0.063]
[1745292515101,8.41471384,139.31,139.3,0.063]
[1745292515521,83.0,139.32,139.3,0.063]
[1745292515705,91.41471384,139.32,139.3,0.063]
[1745292516026,8.41471384,139.31,139.3,0.063]
[1745292516219,15.59294942,139.31,139.3,0.063]
[1745292517429,7.17823558,139.31,139.3,0.063]
[1745292519558,7.17720519,139.33,139.31,18.64964886]
[1745292522849,7.17669011,139.34,139.31,18.64964886]
[1745292524043,15.59140395,139.34,139.31,18.64964886]
[1745292524355,8.41471384,139.33,139.31,18.64964886]
[1745292524859,8.41471384,139.32,139.3,15.063]
[1745292525031,7.17823558,139.31,139.3,18.71264886]
[1745292525351,15.59294942,139.31,139.3,0.063]
[1745292527350,7.17823558,139.31,139.3,0.063]
[1745292527532,7.17823558,139.31,139.3,8.47771384]
[1745292527733,7.17823558,139.31,139.3,0.063]
[1745292529133,7.17772035,139.32,139.3,0.063]
[1745292529446,8.41471384,139.31,139.3,0.063]
[1745292530034,7.17772035,139.32,139.3,0.063]
[1745292536056,15.59243419,139.32,139.3,0.063]
[1745292536246,7.17772035,139.32,139.3,0.063]
[1745292537265,15.59243419,139.32,139.3,0.063]
[1745292537448,8.41471384,139.31,139.3,0.063]
[1745292539241,15.59294942,139.31,139.3,0.063]
[1745292540573,22.07734942,139.31,139.3,1e-08]
[1745292540768,22.07734942,139.31,139.29,1e-08]
[1745292541139,8.41471384,139.3,139.29,1e-08]
[1745292541345,91.41471384,139.3,139.29,1e-08]
[1745292541567,176.19919733,139.3,139.27,1e-08]
[1745292541748,42.0735692,139.28,139.27,1e-08]
[1745292543167,134.12562813,139.3,139.27,1e-08]
[1745292543469,8.41471384,139.29,139.27,1e-08]
[1745292543663,7.17978173,139.28,139.27,1e-08]
[1745292543872,15.59449557,139.28,139.27,1e-08]
[1745292544162,7.17978173,139.28,139.27,1e-08]
[1745292544376,15.59449557,139.28,139.27,1e-08]
[1745292545373,20.3757893,139.28,139.27,1e-08]
[1745292545581,33.57179687,139.28,139.27,1e-08]
[1745292546175,59.57179687,139.28,139.27,1e-08]
[1745292546975,33.57179687,139.28,139.27,1e-08]
[1745292549383,35.21979687,139.28,139.27,1e-08]
[1745292551985,48.0237893,139.28,139.27,1e-08]
[1745292552492,61.21979687,139.28,139.27,1e-08]
[1745292554289,48.0237893,139.28,139.27,1e-08]
[1745292555895,61.21979687,139.28,139.27,1e-08]
[1745292556385,26.0,139.25,139.21,0.03]
[1745292556587,115.21032144,139.28,139.21,0.03]
[1745292556588,13.19600757,139.22,139.21,0.03]
[1745292558098,20.37888359,139.22,139.21,0.03]
[1745292559666,20.37888359,139.22,139.2,0.03]
[1745292559967,96.19600757,139.21,139.2,0.03]
[1745292560269,96.19600757,139.21,139.19,0.03]
[1745292560469,39.19600757,139.2,139.19,0.03]
[1745292560889,26.0,139.17,139.14,1.6172]
[1745292561078,13.19600757,139.15,139.14,20.26684886]
[1745292561687,20.38249696,139.15,139.14,20.26684886]
[1745292562488,20.38249696,139.15,139.13,0.03]
[1745292562686,39.19600757,139.14,139.13,0.03]
[1745292563594,46.38301346,139.14,139.13,0.03]
[1745292566603,13.19600757,139.14,139.13,0.03]
[1745292567007,71.52095034,139.16,139.13,0.03]
[1745292567192,13.19600757,139.14,139.13,0.03]
[1745292567602,20.38301346,139.14,139.13,0.03]
[1745292569109,7.18700589,139.14,139.13,0.03]
[1745292570402,7.18545663,139.17,139.13,31.87565643]
[1745292570624,13.19600757,139.14,139.13,0.03]
[1745292571204,13.19600757,139.14,139.07,18.64964886]
[1745292571407,13.19600757,139.11,139.07,18.64964886]
[1745292571787,87.5853812,139.16,139.07,18.64964886]
[1745292571988,13.19600757,139.1,139.07,18.64964886]
[1745292572299,7.18958947,139.09,139.07,18.64964886]
[1745292573399,7.18958947,139.09,139.06,1.5075]
[1745292573604,20.38559704,139.09,139.06,1.5075]
[1745292575507,38.35957072,139.09,139.06,1.5075]
[1745292575805,38.35957072,139.09,139.06,0.61299]
[1745292576390,7.18958947,139.09,139.07,18.64964886]
[1745292580816,7.18958947,139.09,139.07,31.84565643]
[1745292581003,7.18958947,139.09,139.06,0.61299]
[1745292581213,7.18958947,139.09,139.07,18.64964886]
[1745292582724,7.1880391,139.12,139.09,18.64964886]
[1745292583306,15.65114984,139.12,139.07,27.1127596]
[1745292584627,7.1880391,139.12,139.08,8.60527231]
[1745292585638,15.65114984,139.12,139.08,0.14216157]
[1745292585815,15.65114984,139.12,139.07,27.1127596]
[1745292586002,15.65114984,139.12,139.07,18.64964886]
[1745292586003,8.46311074,139.11,139.07,18.64964886]
[1745292587627,7.1890726,139.1,139.07,18.64964886]
[1745292590040,8.46311074,139.09,139.04,0.14216157]
[1745292590522,8.46311074,139.09,139.06,18.64964886]
[1745292591103,7.19010641,139.08,139.06,18.64964886]
[1745292594825,7.18958947,139.09,139.06,18.64964886]
[1745292596129,15.65270021,139.09,139.03,42.76666157]
[1745292596326,15.65270021,139.09,139.04,27.1127596]
[1745292597137,15.65270021,139.09,139.05,8.46311074]
[1745292598822,15.65270021,139.09,139.06,18.64964886]
[1745292599635,26.43579226,139.1,139.06,18.64964886]
[1745292600323,7.18855581,139.11,139.08,18.64964886]
[1745292600822,15.65166655,139.11,139.08,18.64964886]
[1745292601830,7.18855581,139.11,139.08,18.64964886]
[1745292602222,15.65166655,139.11,139.07,0.14216157]
[1745292602719,15.65166655,139.11,139.07,8.60527231]
[1745292603037,15.65166655,139.11,139.08,18.64964886]
[1745292603545,7.18855581,139.11,139.08,18.64964886]
[1745292603923,15.65166655,139.11,139.08,18.64964886]
[1745292604220,8.46311074,139.1,139.05,8.60527231]
[1745292604426,8.46311074,139.1,139.06,18.64964886]
[1745292605130,7.18958947,139.09,139.06,18.64964886]
[1745292609253,7.18958947,139.09,139.06,8.46311074]
[1745292609946,7.18931744,139.1,139.07,8.60527231]
[1745292610150,7.18931744,139.1,139.08,18.64964886]
[1745292611755,8.46311074,139.12,139.08,18.64964886]
[1745292612755,8.46311074,139.11,139.08,18.64964886]
[1745292613058,8.46311074,139.11,139.07,18.64964886]
[1745292614054,7.1890726,139.1,139.07,18.64964886]
[1745292615753,7.1890726,139.1,139.07,27.1127596]
[1745292616357,7.1890726,139.1,139.07,18.64964886]
[1745292617461,7.1890726,139.1,139.07,27.1127596]
[1745292618265,7.18752246,139.13,139.08,8.60527231]
[1745292618446,7.18752246,139.13,139.1,18.64964886]
[1745292618956,15.6506332,139.13,139.08,8.60527231]
[1745292620565,7.18545663,139.17,139.13,0.14216157]
[1745292620738,7.18545663,139.17,139.15,18.64964886]
[1745292622464,7.24794036,139.18,139.15,18.64964886]
[1745292624261,7.24794036,139.18,139.14,27.1127596]
[1745292625055,8.46311074,139.17,139.14,18.64964886]
[1745292625763,8.46311074,139.16,139.12,18.64964886]
[1745292627376,7.18648939,139.15,139.12,18.64964886]
[1745292628176,7.18648939,139.15,139.12,27.1127596]
[1745292628974,8.46311074,139.17,139.12,27.1127596]
[1745292629278,7.18597298,139.16,139.12,27.1127596]
[1745292629577,7.18597298,139.16,139.14,18.64964886]
[1745292629952,7.18597298,139.16,139.14,27.1127596]
[1745292630146,7.18554024,139.17,139.15,8.46311074]
[1745292630351,7.24815065,139.18,139.16,0.14216157]
[1745292630555,0.063,139.18,139.17,18.79181043]
[1745292630860,0.063,139.18,139.17,27.25492117]
[1745292635586,0.063,139.18,139.17,18.64964886]
[1745292635879,0.063,139.18,139.15,0.14216157]
[1745292636057,8.52611074,139.18,139.15,0.14216157]
[1745292636257,0.063,139.18,139.15,0.14216157]
[1745292637577,7.24794036,139.18,139.15,0.14216157]
[1745292637784,15.7110511,139.18,139.15,0.14216157]
[1745292640956,7.24794036,139.18,139.15,0.14216157]
[1745292641574,15.7110511,139.18,139.15,0.14216157]
[1745292642385,8.46311074,139.16,139.14,18.64964886]
[1745292642567,26.77969127,139.18,139.13,18.64964886]
[1745292642568,8.46311074,139.15,139.13,18.64964886]
[1745292642767,8.46311074,139.14,139.13,18.64964886]
[1745292643066,15.65011663,139.14,139.1,18.64964886]
[1745292643279,8.46311074,139.13,139.1,18.64964886]
[1745292643992,7.1880391,139.12,139.11,0.14216157]
[1745292645110,15.65114984,139.12,139.09,18.64964886]
[1745292645895,8.46311074,139.11,139.09,18.64964886]
[1745292646191,7.1890726,139.1,139.09,18.79181043]
[1745292647269,7.18875264,139.11,139.09,18.79181043]
[1745292647687,8.46311074,139.14,139.1,0.14216157]
[1745292647890,8.46311074,139.14,139.1,8.60527231]
[1745292648689,7.18773525,139.13,139.1,8.60527231]
[1745292649888,71.52056962,139.16,139.12,18.79181043]
[1745292649889,8.46311074,139.16,139.12,18.79181043]
[1745292650278,7.18648939,139.15,139.12,18.79181043]
[1745292650698,15.64960013,139.15,139.12,18.79181043]
[1745292650990,8.46311074,139.14,139.12,18.79181043]
[1745292651179,15.64960013,139.15,139.12,0.14216157]
[1745292655298,8.46311074,139.14,139.1,18.79181043]
[1745292655481,7.18752246,139.13,139.1,18.79181043]
[1745292656399,15.6506332,139.13,139.1,18.79181043]
[1745292656578,8.46311074,139.12,139.09,18.64964886]
[1745292656882,7.18752246,139.13,139.09,18.64964886]
[1745292656883,8.46311074,139.11,139.09,18.64964886]
[1745292657897,7.1890726,139.1,139.09,18.64964886]
[1745292659393,7.18873366,139.11,139.09,18.79181043]
[1745292660102,7.1880391,139.12,139.09,18.79181043]
[1745292660304,7.1880391,139.12,139.1,0.14216157]
[1745292660681,33.91544296,139.2,139.12,18.79181043]
[1745292660682,55.1879812,139.18,139.12,18.79181043]
[1745292660899,55.1879812,139.18,139.15,8.60527231]
[1745292660900,7.18545663,139.17,139.15,8.60527231]
[1745292661202,0.063,139.18,139.15,8.60527231]
[1745292661203,7.24811367,139.18,139.15,8.60527231]
[1745292662300,0.063,139.18,139.15,0.14216157]
[1745292663299,8.46311074,139.16,139.13,14.96]